fUST/lending_fUST_20250425
["ID","MTS","AMOUNT","RATE_DAILY","PERIOD"]
[358927474,1745548148901,-500.0,0.00015593,2]
[358927475,1745548148925,-17966.63558035,0.00015593,2]
[358927476,1745548148950,-1496.75733754,0.00015596,2]
[358927477,1745548148974,-250.0,0.00015686,2]
[358927478,1745548148997,-9240.58723529,0.000157,2]
[358927479,1745548149021,-192.69679332,0.00016164,2]
[358927480,1745548149048,-508.56406754,0.00016438,2]
[358927481,1745548149072,-504.46882542,0.00016438,2]
[358927482,1745548149098,-500.0,0.00016438,2]
[358927483,1745548149120,-507.76377528,0.00016438,2]
[358927484,1745548149146,-504.63162492,0.00016438,2]
[358927485,1745548149169,-500.0,0.00016438,2]
[358927486,1745548149194,-500.0,0.00016438,2]
[358927487,1745548149218,-509.61399133,0.00016438,2]
[358927488,1745548149242,-500.0,0.00016438,2]
[358927489,1745548149266,-503.56866192,0.00016438,2]
[358927490,1745548149292,-500.0,0.00016438,2]
[358927491,1745548149318,-500.0,0.00016438,2]
[358927492,1745548149344,-501.39900212,0.00016438,2]
[358927493,1745548149369,-545.52,0.00016438,2]
[358927494,1745548149394,-518.43429831,0.00016438,2]
[358927495,1745548149420,-521.86813376,0.00016438,2]
[358927496,1745548149445,-500.0,0.00016438,2]
[358927497,1745548149467,-500.0,0.00016438,2]
[358927498,1745548149489,-500.0,0.00016438,2]
[358927499,1745548149509,-668.72,0.00016438,2]
[358927500,1745548149757,-500.0,0.00016438,2]
[358927501,1745548149790,-500.0,0.00016438,2]
[358927502,1745548149813,-500.0,0.00016438,2]
[358927503,1745548149834,-2089.59,0.00016438,2]
[358927504,1745548149857,-2222.24,0.00016438,2]
[358927505,1745548149881,-871.73,0.00016438,2]
[358927506,1745548149903,-500.0,0.00016438,2]
[358927507,1745548149923,-500.0,0.00016438,2]
[358927508,1745548149944,-4990.25,0.00016438,2]
[358927509,1745548149965,-500.0,0.00016438,2]
[358927510,1745548149986,-337.00479937,0.00016438,2]
[358927511,1745548150006,-500.0,0.00016438,2]
[358927512,1745548150029,-1231.76,0.00016438,2]
[358927513,1745548150053,-500.0,0.00016438,2]
[358927514,1745548150072,-500.0,0.00016438,2]
[358927515,1745548150093,-500.0,0.00016438,2]
[358927516,1745548150112,-500.0,0.00016438,2]
[358927517,1745548150133,-500.0,0.00016438,2]
[358927518,1745548150155,-500.0,0.00016438,2]
[358927519,1745548150175,-1962.08,0.00016438,2]
[358927520,1745548150195,-500.0,0.00016438,2]
[358927521,1745548150215,-500.0,0.00016438,2]
[358927522,1745548150236,-1386.68,0.00016438,2]
[358927523,1745548150258,-1495.58,0.00016438,2]
[358927524,1745548150282,-500.0,0.00016438,2]
[358927525,1745548150303,-824.52,0.00016438,2]
[358927526,1745548150323,-500.0,0.00016438,2]
[358927527,1745548150344,-500.0,0.00016438,2]
[358927528,1745548150365,-500.0,0.00016438,2]
[358927529,1745548150387,-500.0,0.00016438,2]
[358927530,1745548150407,-5762.75,0.00016438,2]
[358927531,1745548150428,-500.0,0.00016438,2]
[358927532,1745548150449,-1925.97,0.00016438,2]
[358927533,1745548150470,-500.0,0.00016438,2]
[358927534,1745548150489,-508.82175171,0.00016438,2]
[358927535,1745548150511,-500.0,0.00016438,2]
[358927536,1745548150534,-1739.38,0.00016438,2]
[358927537,1745548150554,-1991.19,0.00016438,2]
[358927538,1745548150575,-711.04,0.00016438,2]
[358927539,1745548150594,-500.0,0.00016438,2]
[358927540,1745548150615,-500.0,0.00016438,2]
[358927541,1745548150635,-500.0,0.00016438,2]
[358927542,1745548150663,-592.2,0.00016438,2]
[358927543,1745548150683,-4130.91,0.00016438,2]
[358927544,1745548150708,-500.0,0.00016438,2]
[358927545,1745548150730,-500.0,0.00016438,2]
[358927546,1745548150751,-507.0178487,0.00016438,2]
[358927547,1745548150773,-311.10190367,0.00016438,2]
[358927548,1745548150795,-500.0,0.00016438,2]
[358927549,1745548150818,-5315.83,0.00016438,2]
[358927550,1745548150839,-500.0,0.00016438,2]
[358927551,1745548150860,-533.66,0.00016438,2]
[358927552,1745548150881,-251.40248562,0.00016438,2]
[358927554,1745548162407,557.56021562,0.00031945,120]
[358927555,1745548169107,-554.67068736,0.00015135,2]
[358927556,1745548169138,-500.0,0.00015135,2]
[358927557,1745548169163,-377.34751438,0.00016438,2]
[358927558,1745548169347,-583.74160789,0.00016438,2]
[358927559,1745548169372,-1919.09,0.00016438,2]
[358927560,1745548169399,-529.71,0.00016438,2]
[358927561,1745548169424,-500.0,0.00016438,2]
[358927562,1745548169448,-1770.06,0.00016438,2]
[358927563,1745548169472,-509.01,0.00016438,2]
[358927564,1745548169496,-500.0,0.00016438,2]
[358927565,1745548169520,-500.0,0.00016438,2]
[358927566,1745548169544,-500.0,0.00016438,2]
[358927567,1745548169567,-835.41,0.00016438,2]
[358927568,1745548169590,-2281.68339356,0.00016573,2]
[358927569,1745548169614,-270.46,0.00016598,3]
[358927570,1745548169638,-811.38,0.00016598,3]
[358927571,1745548169660,-2632.14803603,0.00016608,2]
[358927595,1745548232298,-500.0,0.00016438,2]
[358927596,1745548232309,-481.39970367,0.00016438,2]
[358927597,1745548232319,-19322.5077001,0.00016438,2]
[358927598,1745548232332,-1734.01687039,0.00016438,2]
[358927600,1745548232343,-500.0,0.00016438,2]
[358927602,1745548232353,-503.58327276,0.00016438,2]
[358927604,1745548232363,-500.0,0.00016438,2]
[358927606,1745548232374,-4782.32,0.00016438,2]
[358927608,1745548232384,-506.74429574,0.00016438,2]
[358927610,1745548232394,-520.75926204,0.00016438,2]
[358927612,1745548232404,-1328.91,0.00016438,2]
[358927614,1745548232414,-790.17,0.00016438,2]
[358927616,1745548232423,-1180.44,0.00016438,2]
[358927618,1745548232433,-505.72669541,0.00016438,2]
[358927620,1745548232443,-504.91993745,0.00016438,2]
[358927621,1745548232453,-500.0,0.00016438,2]
[358927622,1745548232462,-500.0,0.00016438,2]
[358927623,1745548232472,-51154.7508154,0.00016608,2]
[358927627,1745548235363,200.0,0.00035,120]
[358927628,1745548236224,200.0,0.00037,120]
[358927656,1745548238259,-151132.07235719,0.00016608,2]
[358927658,1745548238271,-1267.90529294,0.00016608,2]
[358927660,1745548238283,-3156.01735018,0.00016608,2]
[358927664,1745548238313,-9271.58104995,0.00016608,2]
[358927669,1745548238405,-40.37270451,0.00016608,2]
[358927670,1745548238518,-158.76116453,0.00016608,2]
[358927671,1745548238531,-659.85172841,0.00016608,2]
[358927820,1745548241011,-150526.53950086,0.00016608,2]
[358927821,1745548241022,-2281.68339354,0.00016664,2]
[358927822,1745548241032,-448.80131538,0.00016673,2]
[358927823,1745548241043,-500.85671351,0.00016673,2]
[358927824,1745548241053,-503.06968605,0.00016673,2]
[358927825,1745548241063,-502.40718458,0.00016673,2]
[358927826,1745548241073,-501.74068805,0.00016673,2]
[358927827,1745548241084,-504.4523924,0.00016673,2]
[358927828,1745548241093,-500.0,0.00016673,2]
[358927829,1745548241105,-502.89211903,0.00016673,2]
[358927830,1745548241115,-500.0,0.00016673,2]
[358927831,1745548241125,-501.80500911,0.00016673,2]
[358927832,1745548241135,-511.4048624,0.00016673,2]
[358927833,1745548241144,-501.28193428,0.00016673,2]
[358927834,1745548241155,-501.77169102,0.00016673,2]
[358927835,1745548241164,-500.41583285,0.00016673,2]
[358927836,1745548241174,-160.21959284,0.00016673,2]
[358927837,1745548241183,-500.52902278,0.00016673,2]
[358927838,1745548241193,-501.07505253,0.00016673,2]
[358927839,1745548241202,-501.98587904,0.00016673,2]
[358927840,1745548241212,-505.00870691,0.00016673,2]
[358927841,1745548241222,-501.23020888,0.00016673,2]
[358927842,1745548241231,-503.72027423,0.00016673,2]
[358927843,1745548241241,-500.0,0.00016673,2]
[358927844,1745548241251,-503.5598633,0.00016673,2]
[358927845,1745548241260,-510.04962278,0.00016673,2]
[358927846,1745548241270,-500.0,0.00016673,2]
[358927847,1745548241279,-500.51246879,0.00016673,2]
[358927848,1745548241289,-500.0,0.00016673,2]
[358927849,1745548241299,-504.71688602,0.00016673,2]
[358927850,1745548241309,-186.42524851,0.00016673,2]
[358927851,1745548241319,-500.0,0.00016673,2]
[358927852,1745548241328,-500.0,0.00016673,2]
[358927853,1745548241338,-420.98395174,0.00016703,2]
[358927854,1745548241351,-500.0,0.00016712,2]
[358927855,1745548241361,-500.0,0.00016712,2]
[358927856,1745548241371,-500.0,0.00016712,2]
[358927857,1745548241380,-500.0,0.00016712,2]
[358927858,1745548241390,-545.52,0.00016712,2]
[358927859,1745548241400,-500.0,0.00016712,2]
[358927860,1745548241409,-522.19447368,0.00016712,2]
[358927861,1745548241419,-500.0,0.00016712,2]
[358927862,1745548241429,-668.72,0.00016712,2]
[358927863,1745548241439,-2089.59,0.00016712,2]
[358927864,1745548241448,-2222.24,0.00016712,2]
[358927865,1745548241459,-500.0,0.00016712,2]
[358927866,1745548241468,-500.0,0.00016712,2]
[358927867,1745548241478,-500.0,0.00016712,2]
[358927868,1745548241488,-500.0,0.00016712,2]
[358927869,1745548241497,-1962.08,0.00016712,2]
[358927870,1745548241507,-199.98418624,0.00016712,2]
[358927871,1745548241517,-505.23617622,0.00016712,2]
[358927872,1745548241527,-1495.58,0.00016712,2]
[358927873,1745548241537,-500.0,0.00016712,2]
[358927874,1745548241547,-500.0,0.00016712,2]
[358927875,1745548241557,-500.0,0.00016712,2]
[358927876,1745548241567,-5762.75,0.00016712,2]
[358927877,1745548241577,-229.96843009,0.00016712,2]
[358927878,1745548241587,-1925.97,0.00016712,2]
[358927879,1745548241597,-500.0,0.00016712,2]
[358927880,1745548241609,-1739.38,0.00016712,2]
[358927881,1745548241619,-1991.19,0.00016712,2]
[358927882,1745548241629,-711.04,0.00016712,2]
[358927883,1745548241639,-500.0,0.00016712,2]
[358927884,1745548241649,-592.2,0.00016712,2]
[358927885,1745548241658,-4130.91,0.00016712,2]
[358927886,1745548241667,-500.0,0.00016712,2]
[358927887,1745548241677,-500.0,0.00016712,2]
[358927888,1745548241686,-5315.83,0.00016712,2]
[358927889,1745548241696,-533.66,0.00016712,2]
[358927890,1745548241705,-628.75,0.00016712,2]
[358927891,1745548241714,-1919.09,0.00016712,2]
[358927892,1745548241723,-529.71,0.00016712,2]
[358927893,1745548241732,-500.0,0.00016712,2]
[358927894,1745548241742,-1770.06,0.00016712,2]
[358927895,1745548241752,-509.01,0.00016712,2]
[358927896,1745548241763,-500.0,0.00016712,2]
[358927897,1745548241773,-500.0,0.00016712,2]
[358927898,1745548241783,-835.41,0.00016712,2]
[358927899,1745548241793,-500.0,0.00016712,2]
[358927900,1745548241803,-500.0,0.00016712,2]
[358927901,1745548241812,-500.0,0.00016712,2]
[358927902,1745548241823,-4782.32,0.00016712,2]
[358927903,1745548241833,-1328.91,0.00016712,2]
[358927904,1745548241843,-790.17,0.00016712,2]
[358927905,1745548241854,-1180.44,0.00016712,2]
[358927906,1745548241864,-500.0,0.00016712,2]
[358927907,1745548241874,-160.0,0.00016713,2]
[358927908,1745548241884,-12579.26882624,0.00016713,2]
[358927909,1745548241893,-160.0,0.00016713,2]
[358927910,1745548241903,-840.21051354,0.00016713,2]
[358927911,1745548241912,-160.0,0.00016713,2]
[358927912,1745548241921,-160.0,0.00016713,2]
[358927913,1745548241931,-160.0,0.00016713,2]
[358927914,1745548241941,-3034.4370698,0.00016736,2]
[358927915,1745548241950,-2281.68339354,0.00016754,2]
[358927916,1745548241960,-2281.68339354,0.00016845,2]
[358927917,1745548241970,-1000.0,0.00016886,2]
[358927918,1745548241979,-2281.68339354,0.00016935,2]
[358927919,1745548241988,-439.90692985,0.00016973,2]
[358927920,1745548241998,-552.52807632,0.00016973,2]
[358927921,1745548242007,-504.07817688,0.00016973,2]
[358927922,1745548242016,-500.0,0.00016973,2]
[358927923,1745548242025,-500.0,0.00016973,2]
[358927924,1745548242035,-500.0,0.00016973,2]
[358927925,1745548242045,-500.0,0.00016973,2]
[358927926,1745548242054,-506.53240756,0.00016973,2]
[358927927,1745548242063,-500.0,0.00016973,2]
[358927928,1745548242074,-500.9571829,0.00016973,2]
[358927929,1745548242085,-500.0,0.00016973,2]
[358927930,1745548242094,-500.0,0.00016973,2]
[358927931,1745548242104,-500.0,0.00016973,2]
[358927932,1745548242114,-500.0,0.00016973,2]
[358927933,1745548242123,-500.0,0.00016973,2]
[358927934,1745548242133,-206.22329249,0.00016973,2]
[358927935,1745548242142,-506.38860943,0.00016973,2]
[358927936,1745548242154,-500.0,0.00016973,2]
[358927937,1745548242164,-500.0,0.00016986,2]
[358927938,1745548242173,-500.0,0.00016986,2]
[358927939,1745548242183,-500.0,0.00016986,2]
[358927940,1745548242192,-500.0,0.00016986,2]
[358927941,1745548242202,-545.52,0.00016986,2]
[358927942,1745548242211,-500.0,0.00016986,2]
[358927943,1745548242221,-500.0,0.00016986,2]
[358927944,1745548242231,-668.72,0.00016986,2]
[358927945,1745548242240,-2089.59,0.00016986,2]
[358927946,1745548242251,-2222.24,0.00016986,2]
[358927947,1745548242260,-500.0,0.00016986,2]
[358927948,1745548242270,-500.0,0.00016986,2]
[358927949,1745548242280,-500.0,0.00016986,2]
[358927950,1745548242290,-500.0,0.00016986,2]
[358927951,1745548242299,-1962.08,0.00016986,2]
[358927952,1745548242309,-1495.58,0.00016986,2]
[358927953,1745548242319,-500.0,0.00016986,2]
[358927954,1745548242328,-5762.75,0.00016986,2]
[358927955,1745548242338,-1925.97,0.00016986,2]
[358927956,1745548242348,-242.92425404,0.00016986,2]
[358927957,1745548242357,-1739.38,0.00016986,2]
[358927958,1745548242368,-1991.19,0.00016986,2]
[358927959,1745548242378,-711.04,0.00016986,2]
[358927960,1745548242388,-500.0,0.00016986,2]
[358927961,1745548242398,-592.2,0.00016986,2]
[358927962,1745548242409,-4130.91,0.00016986,2]
[358927963,1745548242418,-358.44793387,0.00016986,2]
[358927964,1745548242428,-500.0,0.00016986,2]
[358927965,1745548242438,-5315.83,0.00016986,2]
[358927966,1745548242447,-533.66,0.00016986,2]
[358927967,1745548242458,-628.75,0.00016986,2]
[358927968,1745548242467,-1919.09,0.00016986,2]
[358927969,1745548242477,-529.71,0.00016986,2]
[358927970,1745548242487,-500.0,0.00016986,2]
[358927971,1745548242497,-1770.06,0.00016986,2]
[358927972,1745548242507,-509.01,0.00016986,2]
[358927973,1745548242517,-500.0,0.00016986,2]
[358927974,1745548242526,-500.0,0.00016986,2]
[358927975,1745548242536,-835.41,0.00016986,2]
[358927976,1745548242545,-500.0,0.00016986,2]
[358927977,1745548242554,-500.0,0.00016986,2]
[358927978,1745548242564,-500.0,0.00016986,2]
[358927979,1745548242573,-4782.32,0.00016986,2]
[358927980,1745548242582,-1328.91,0.00016986,2]
[358927981,1745548242591,-790.17,0.00016986,2]
[358927982,1745548242602,-1180.44,0.00016986,2]
[358927983,1745548242612,-500.0,0.00016986,2]
[358927984,1745548242621,-27622.21519863,0.00017,2]
[358928012,1745548243627,-2062.17,0.00016438,2]
[358928014,1745548243638,-67.32859107,0.00016712,2]
[358928020,1745548245126,-219.37616963,0.00016712,2]
[358928029,1745548246342,-1775.4652393,0.00016712,2]
[358928030,1745548246354,-1213.22243417,0.00016986,2]
[358928032,1745548246428,-47.11214146,0.00016986,2]
[358928033,1745548246441,-801.83542437,0.00016986,2]
[358928035,1745548246451,-52376.78480137,0.00017,2]
[358928037,1745548246460,-179471.0,0.00017,2]
[358928038,1745548246471,-1000.0,0.00017084,2]
[358928039,1745548246481,-214.3832503,0.00017156,2]
[358928040,1745548246491,-317.96099324,0.00017191,2]
[358928041,1745548246500,-500.0,0.0001726,2]
[358928042,1745548246510,-500.0,0.0001726,2]
[358928043,1745548246521,-500.0,0.0001726,2]
[358928044,1745548246530,-500.0,0.0001726,2]
[358928045,1745548246539,-545.52,0.0001726,2]
[358928046,1745548246550,-500.0,0.0001726,2]
[358928047,1745548246559,-449.4727666,0.0001726,2]
[358928048,1745548246568,-668.72,0.0001726,2]
[358928049,1745548246578,-2089.59,0.0001726,2]
[358928050,1745548246588,-2222.24,0.0001726,2]
[358928051,1745548246597,-500.0,0.0001726,2]
[358928052,1745548246607,-500.0,0.0001726,2]
[358928053,1745548246617,-500.0,0.0001726,2]
[358928054,1745548246628,-500.0,0.0001726,2]
[358928055,1745548246638,-1962.08,0.0001726,2]
[358928056,1745548246647,-500.0,0.0001726,2]
[358928057,1745548246656,-5762.75,0.0001726,2]
[358928058,1745548246665,-1925.97,0.0001726,2]
[358928059,1745548246675,-1739.38,0.0001726,2]
[358928060,1745548246684,-1991.19,0.0001726,2]
[358928061,1745548246693,-711.04,0.0001726,2]
[358928062,1745548246702,-500.0,0.0001726,2]
[358928063,1745548246712,-592.2,0.0001726,2]
[358928064,1745548246721,-4130.91,0.0001726,2]
[358928065,1745548246730,-500.0,0.0001726,2]
[358928066,1745548246739,-5315.83,0.0001726,2]
[358928067,1745548246748,-533.66,0.0001726,2]
[358928068,1745548246758,-628.75,0.0001726,2]
[358928069,1745548246768,-1919.09,0.0001726,2]
[358928070,1745548246778,-529.71,0.0001726,2]
[358928071,1745548246787,-589.45232564,0.0001726,2]
[358928072,1745548246797,-1770.06,0.0001726,2]
[358928073,1745548246806,-509.01,0.0001726,2]
[358928074,1745548246816,-500.0,0.0001726,2]
[358928075,1745548246827,-500.0,0.0001726,2]
[358928076,1745548246837,-835.41,0.0001726,2]
[358928077,1745548246848,-508.95091825,0.0001726,2]
[358928078,1745548246859,-204.48427083,0.0001726,2]
[358928079,1745548246868,-500.0,0.0001726,2]
[358928080,1745548246877,-4782.32,0.0001726,2]
[358928081,1745548246887,-1328.91,0.0001726,2]
[358928082,1745548246896,-790.17,0.0001726,2]
[358928083,1745548246905,-1180.44,0.0001726,2]
[358928084,1745548246915,-500.0,0.0001726,2]
[358928085,1745548246925,-2062.17,0.0001726,2]
[358928086,1745548246934,-250.0,0.00017334,2]
[358928087,1745548246943,-545.0,0.00017387,2]
[358928088,1745548246953,-2247.0,0.00017387,2]
[358928089,1745548246963,-706.0,0.00017387,2]
[358928090,1745548246972,-500.0,0.00017473,2]
[358928091,1745548246982,-637.80866703,0.00017473,2]
[358928092,1745548246992,-1500.0,0.00017495,2]
[358928093,1745548247002,-5403.17119441,0.000175,4]
[358928094,1745548247011,-6223.7944824,0.0001753,2]
[358928095,1745548247021,-500.0,0.00017534,2]
[358928096,1745548247032,-500.0,0.00017534,2]
[358928097,1745548247041,-500.0,0.00017534,2]
[358928098,1745548247051,-500.0,0.00017534,2]
[358928099,1745548247061,-545.52,0.00017534,2]
[358928100,1745548247073,-500.0,0.00017534,2]
[358928101,1745548247082,-153.99682388,0.00017534,2]
[358928102,1745548247096,-514.72317612,0.00017534,2]
[358928103,1745548247107,-2089.59,0.00017534,2]
[358928104,1745548247118,-2222.24,0.00017534,2]
[358928105,1745548247128,-500.0,0.00017534,2]
[358928106,1745548247137,-500.0,0.00017534,2]
[358928107,1745548247150,-500.0,0.00017534,2]
[358928108,1745548247160,-500.0,0.00017534,2]
[358928109,1745548247170,-1962.08,0.00017534,2]
[358928110,1745548247179,-500.0,0.00017534,2]
[358928111,1745548247188,-1302.58970031,0.00017534,2]
[358928112,1745548247200,-3822.10913016,0.00017534,2]
[358928113,1745548247214,-638.05116953,0.00017534,2]
[358928114,1745548247223,-1925.97,0.00017534,2]
[358928115,1745548247234,-1288.48754342,0.00017534,2]
[358928122,1745548356940,1218.62875637,0.00038356,60]
[358928123,1745548410920,541.99828769,0.000362,120]
[358928124,1745548415921,541.99828766,0.000362,120]
[358928125,1745548421149,541.99828766,0.000362,120]
[358928126,1745548421860,500.0,0.00038356,60]
[358928127,1745548425951,541.99828766,0.000362,120]
[358928133,1745548612119,25182.89968306,0.00038356,60]
[358928134,1745548790735,199.99903031,0.00038356,60]
[358928135,1745548856257,180.6660959,0.000362,120]
[358928136,1745548861167,180.66609588,0.000362,120]
[358928137,1745549172939,4300.0,0.00038356,60]
[358928138,1745549227808,1000.0,0.00038,60]
[358928139,1745549229115,-1000.0,0.00015493,2]
[358928140,1745549229138,-194.5623325,0.00015504,2]
[358928141,1745549229161,-500.0,0.00016438,2]
[358928142,1745549229408,-500.0,0.00016438,2]
[358928143,1745549229454,-84.78581563,0.00016438,2]
[358928144,1745549239097,-286.0661248,0.00016438,2]
[358928145,1745549291523,180.66609588,0.000362,120]
[358928147,1745549345097,-559.173996,0.00015393,2]
[358928148,1745549345122,-420.826004,0.00015504,2]
[358928149,1745549346140,-1727.43159035,0.00015504,2]
[358928150,1745549380455,1000.0,0.00038,60]
[358928155,1745549432579,-42.65257095,0.00015504,2]
[358928156,1745549432590,-2172.99,0.00016438,2]
[358928157,1745549432604,-500.0,0.00016438,2]
[358928158,1745549432615,-500.0,0.00016438,2]
[358928159,1745549432624,-508.20282025,0.00016438,2]
[358928160,1745549432634,-505.53688372,0.00016438,2]
[358928161,1745549432644,-1914.7,0.00016438,2]
[358928162,1745549432654,-2203.01,0.00016438,2]
[358928163,1745549432664,-500.0,0.00016438,2]
[358928164,1745549432673,-1809.53,0.00016438,2]
[358928165,1745549432683,-500.0,0.00016438,2]
[358928166,1745549432693,-500.0,0.00016438,2]
[358928167,1745549432703,-500.0,0.00016438,2]
[358928168,1745549432715,-1924.9,0.00016438,2]
[358928169,1745549432725,-500.0,0.00016438,2]
[358928170,1745549432735,-274.4348186,0.00016438,2]
[358928171,1745549432744,-1614.14668194,0.00016438,2]
[358928174,1745549432782,-75.07331806,0.00016438,2]
[358928175,1745549432792,-500.0,0.00016438,2]
[358928177,1745549432803,-500.0,0.00016438,2]
[358928178,1745549432812,-67.91349884,0.00016438,2]
[358928197,1745549438560,-432.08650116,0.00016438,2]
[358928198,1745549438570,-335.44748934,0.00016438,2]
[358928199,1745549438613,-164.55251066,0.00016438,2]
[358928200,1745549438623,-500.0,0.00016438,2]
[358928201,1745549438633,-500.0,0.00016438,2]
[358928202,1745549438643,-500.0,0.00016438,2]
[358928203,1745549438652,-500.0,0.00016438,2]
[358928204,1745549438662,-500.0,0.00016438,2]
[358928205,1745549438671,-1899.93,0.00016438,2]
[358928206,1745549438682,-500.0,0.00016438,2]
[358928207,1745549438695,-500.0,0.00016438,2]
[358928208,1745549438705,-500.0,0.00016438,2]
[358928209,1745549438718,-509.04622644,0.00016438,2]
[358928210,1745549438728,-1908.64,0.00016438,2]
[358928211,1745549438737,-501.5,0.00016438,2]
[358928212,1745549438746,-500.26,0.00016438,2]
[358928213,1745549438756,-1070.27,0.00016438,2]
[358928214,1745549438767,-500.0,0.00016438,2]
[358928215,1745549438777,-1716.88,0.00016438,2]
[358928216,1745549438788,-500.0,0.00016438,2]
[358928217,1745549438798,-2052.69,0.00016438,2]
[358928218,1745549438807,-500.0,0.00016438,2]
[358928219,1745549438817,-506.72275636,0.00016438,2]
[358928220,1745549438827,-503.25764809,0.00016438,2]
[358928221,1745549438836,-631.41,0.00016438,2]
[358928222,1745549438844,-500.0,0.00016438,2]
[358928223,1745549438852,-509.19627909,0.00016438,2]
[358928224,1745549438860,-744.15,0.00016438,2]
[358928225,1745549438869,-530.88,0.00016438,2]
[358928226,1745549438878,-509.80186877,0.00016438,2]
[358928227,1745549438886,-1676.23,0.00016438,2]
[358928228,1745549438895,-500.0,0.00016438,2]
[358928229,1745549438904,-500.0,0.00016438,2]
[358928230,1745549438913,-500.0,0.00016438,2]
[358928231,1745549438922,-507.16794476,0.00016438,2]
[358928232,1745549438930,-500.0,0.00016438,2]
[358928233,1745549438939,-3214.76,0.00016438,2]
[358928234,1745549438949,-500.0,0.00016438,2]
[358928235,1745549438958,-500.0,0.00016438,2]
[358928236,1745549438968,-500.0,0.00016438,2]
[358928237,1745549438979,-4006.43,0.00016438,2]
[358928238,1745549438989,-531.25,0.00016438,2]
[358928239,1745549438999,-534.22,0.00016438,2]
[358928240,1745549439009,-519.01,0.00016438,2]
[358928241,1745549439019,-541.37467696,0.00016438,2]
[358928242,1745549439029,-500.0,0.00016438,2]
[358928243,1745549439038,-500.0,0.00016438,2]
[358928244,1745549439047,-500.0,0.00016438,2]
[358928245,1745549439057,-1422.3453475,0.00016438,2]
[358928247,1745549443099,-257.9446525,0.00016438,2]
[358928249,1745549443108,-1524.72,0.00016438,2]
[358928250,1745549443118,-500.0,0.00016438,2]
[358928251,1745549443128,-508.22226068,0.00016438,2]
[358928252,1745549443137,-500.0,0.00016438,2]
[358928253,1745549443147,-512.29,0.00016438,2]
[358928254,1745549443156,-511.12667342,0.00016438,2]
[358928255,1745549443166,-512.49,0.00016438,2]
[358928256,1745549443175,-500.0,0.00016438,2]
[358928257,1745549443185,-242.44651731,0.00016438,2]
[358928258,1745549443194,-500.0,0.00016438,2]
[358928259,1745549443205,-615.67,0.00016438,2]
[358928260,1745549443214,-1574.15,0.00016438,2]
[358928261,1745549443223,-573.28,0.00016438,2]
[358928262,1745549443233,-501.5083336,0.00016438,2]
[358928263,1745549443242,-500.47605284,0.00016438,2]
[358928264,1745549443251,-577.03,0.00016438,2]
[358928265,1745549443260,-3495.08,0.00016438,2]
[358928266,1745549443270,-500.0,0.00016438,2]
[358928267,1745549443280,-597.85,0.00016438,2]
[358928268,1745549443290,-2166.58,0.00016438,2]
[358928269,1745549443299,-4773.21,0.00016438,2]
[358928270,1745549443309,-506.78619531,0.00016438,2]
[358928271,1745549443318,-500.0,0.00016438,2]
[358928272,1745549443328,-500.0,0.00016438,2]
[358928273,1745549443338,-1659.32,0.00016438,2]
[358928274,1745549443347,-500.0,0.00016438,2]
[358928275,1745549443357,-1266.66,0.00016438,2]
[358928276,1745549443366,-500.0,0.00016438,2]
[358928277,1745549443376,-619.61,0.00016438,2]
[358928278,1745549443385,-1678.08,0.00016438,2]